[Event "FIDE WCCC G12 2018"]
[Site "Santiago de Compostela"]
[Date "2018.11.04"]
[Round "1"]
[White "Kairbekova, Amina"]
[Black "Mamardashvili, Ana"]
[Result "1-0"]
[ECO "C45"]
[WhiteElo "1939"]
[BlackElo "1527"]
[Annotator "NA"]
[PlyCount "87"]
[EventDate "2018.11.04"]
[EventType "swiss"]
[EventCountry "ESP"]
[SourceTitle "playchess.com"]
[Source "ChessBase"]
[SourceQuality "1"]
[TimeControl "40/5400+30:1800+30"]

1. e4 {[%emt 0:00:00]} e5 {[%emt 0:00:00]} 2. Nf3 {[%emt 0:00:00]} Nc6 {[%emt 0:00:00]} 3. d4 {[%emt 0:00:00]} exd4 {[%emt 0:00:00]} 4. Nxd4 {[%emt 0:00:00]} Nf6 {[%emt 0:00:14]} 5. Nxc6 {[%emt 0:00:01]} bxc6 {[%emt 0:00:10]} 6. e5 {[%emt 0:00:02]} Qe7 {[%emt 0:00:16]} 7. Qe2 {[%emt 0:00:03]} Nd5 {[%emt 0:00:15]} 8. h4 {[%emt 0:00:03]} d6 {[%emt 0:02:33] C45: Scotch Game} (8... Qe6 9. g3 Nb4 10. c4 Ba6 11. Bf4 d5 12. a3 Bxc4 13. Qd1 Bxf1 14. Kxf1 Na6 15. Nc3 Nc5 16. b4 {1-0 (32) Tomczak,J (2614)-Kramnik,V (2779) Batumi 2018}) 9. c4 {[%emt 0:03:48]} Nb6 {[%emt 0:02:37]} 10. exd6 {[%emt 0:00:09]} cxd6 {[%emt 0:01:55] LiveBook: 13 Games} 11. Be3 {[%emt 0:00:06]} Rb8 $146 {[%emt 0:08:53]} ({Predecessor:} 11... d5 12. Nd2 dxc4 13. g3 Be6 14. Bg2 Qc7 15. O-O Be7 16. Bxb6 axb6 17. Nxc4 {½-½ (26) Van Foreest,J (2638)-Gledura,B (2615) Brest 2018}) 12. Qc2 {[%emt 0:07:52]} (12. g3 $11) 12... h5 {[%emt 0:14:26]} 13. Be2 {[%emt 0:01:27]} Qe5 {[%emt 0:04:38]} (13... g6 $14) 14. Nc3 {[%emt 0:05:00]} Bf5 {[%emt 0:07:58]} 15. Qd2 {[%emt 0:00:23]} Qe6 {[%emt 0:08:03]} 16. b3 {[%emt 0:01:46]} Be7 {[%emt 0:03:19]} 17. Bf3 {[%emt 0:00:19]} Rc8 {[%emt 0:04:36]} 18. Ne2 {[%emt 0:01:06]} d5 {[%emt 0:10:33] [#]} (18... Bg4 $14) 19. Nd4 {[%emt 0:07:28]} (19. Nf4 $1 $16 {[%cal Rf4e6]} Qd7 20. Nxh5) 19... Qe5 {[%emt 0:01:30] [#]} (19... Qg6 $14) 20. O-O $1 {[%emt 0:00:18]} Bd6 {[%emt 0:06:18]} (20... Bf6 $142 21. Qa5 (21. Nxf5 Qxf5 22. Bxb6 axb6 $16) 21... O-O) 21. g3 {[%emt 0:01:25]} O-O $2 {[%emt 0:02:35]} (21... Be4 {is tougher.} 22. Bf4 Qf6) 22. Bf4 {[%emt 0:00:43]} Qf6 {[%emt 0:04:30]} 23. Bxd6 {[%emt 0:02:29]} Bh3 {[%emt 0:02:45]} 24. Bxf8 {[%emt 0:00:35]} Bxf1 {[%emt 0:00:06]} 25. Rxf1 {[%emt 0:00:03]} Kxf8 {[%emt 0:01:08]} 26. c5 {[%emt 0:00:45]} Nd7 {[%emt 0:00:31]} 27. Bxh5 {[%emt 0:00:58]} Re8 {[%emt 0:04:10]} 28. Bf3 {[%emt 0:03:43]} Ne5 {[%emt 0:02:12]} 29. Bg2 {[%emt 0:00:09]} Nd7 {[%emt 0:02:32]} 30. b4 {[%emt 0:00:31]} a6 {[%emt 0:00:48]} 31. Qf4 {[%emt 0:00:21]} Qxf4 {[%emt 0:02:16]} 32. gxf4 {[%emt 0:00:06]} Rc8 {[%emt 0:00:38]} 33. Bh3 {[%emt 0:00:14]} Rc7 {[%emt 0:01:20]} 34. Bxd7 {[%emt 0:00:24]} Rxd7 {[%emt 0:00:03]} 35. Nxc6 {[%emt 0:00:09]} Ke8 {[%emt 0:01:35]} 36. Re1+ {[%emt 0:00:14]} Kf8 {[%emt 0:00:13]} 37. Nb8 {[%emt 0:00:16]} Ra7 {[%emt 0:00:27]} 38. c6 {[%emt 0:00:12]} Rc7 {[%emt 0:00:30]} 39. a4 {[%emt 0:00:24]} Rc8 {[%emt 0:00:40]} 40. Nd7+ {[%emt 0:00:00]} Kg8 {[%emt 0:00:00]} 41. b5 {[%emt 0:00:28]} axb5 {[%emt 0:00:22]} 42. axb5 {[%emt 0:00:03]} f6 {[%emt 0:01:14]} 43. b6 {[%emt 0:00:10]} Rxc6 {[%emt 0:00:06]} 44. b7 {[%emt 0:00:03]} 1-0

[Event "FIDE WCCC G12 2018"]
[Site "Santiago de Compostela"]
[Date "2018.11.04"]
[Round "1"]
[White "Omonova, Umida"]
[Black "Schiopu, Oana-Magdalena"]
[Result "1-0"]
[ECO "B52"]
[WhiteElo "1854"]
[BlackElo "1526"]
[Annotator "NA RC"]
[PlyCount "103"]
[EventDate "2018.11.04"]
[EventType "swiss"]
[EventCountry "ESP"]
[SourceTitle "playchess.com"]
[Source "ChessBase"]
[SourceQuality "1"]
[TimeControl "40/5400+30:1800+30"]

1. e4 {[%emt 0:00:00]} c5 {[%emt 0:00:00]} 2. Nf3 {[%emt 0:01:10]} d6 {[%emt 0:00:20]} 3. Bb5+ {[%emt 0:00:43]} Bd7 {[%emt 0:00:51]} 4. Bxd7+ {[%emt 0:00:18]} Qxd7 {[%emt 0:00:08]} 5. O-O {[%emt 0:01:07]} Nc6 {[%emt 0:03:22]} 6. Re1 {[%emt 0:03:13]} g6 {[%emt 0:06:44] B52: Sicilian: Moscow Variation with 3...Bd7} (6... Nf6 7. c3 e6 8. d3 Be7 9. Bf4 O-O 10. Nbd2 b5 11. h3 Qb7 12. Nf1 Rfd8 13. Ng3 Rac8 14. Qe2 h6 15. d4 cxd4 16. cxd4 Nb4 {0-1 (54) Rapport,R (2709)-Oparin,G (2562) Moscow 2015}) 7. d3 {[%emt 0:02:18]} Bg7 {[%emt 0:01:06]} 8. Nbd2 {[%emt 0:01:00]} Nf6 {[%emt 0:02:02]} 9. a4 {[%emt 0:01:15]} O-O {[%emt 0:06:13]} 10. c3 {[%emt 0:02:27]} Rac8 {[%emt 0:04:36]} 11. a5 $146 {[%emt 0:04:12]} ({Predecessor:} 11. h3 Ne5 12. Qe2 Qc7 13. Nxe5 dxe5 14. Nc4 {½-½ (27) Norgaard,J (2435)-Delgado Ramirez,N (2554) Yucatan 2004}) 11... Ng4 {[%emt 0:15:19]} 12. Qe2 {[%emt 0:04:28]} Rfe8 {[%emt 0:03:55]} 13. h3 {[%emt 0:02:07]} Nf6 {[%emt 0:03:42]} 14. Nf1 {[%emt 0:02:13]} Qc7 {[%emt 0:11:05]} 15. Bf4 {[%emt 0:03:50]} Nd7 {[%emt 0:06:33]} 16. Ne3 {[%emt 0:01:11]} Nxa5 {[%emt 0:03:33]} 17. Nd5 {[%emt 0:10:47]} Qd8 {[%emt 0:00:32]} 18. Bg5 {[%emt 0:01:05]} Nc6 {[%emt 0:02:09]} 19. Rad1 {[%emt 0:01:44]} Nb6 {[%emt 0:04:11]} 20. Nh2 {[%emt 0:04:53]} f6 {[%emt 0:04:27]} 21. Bh4 {[%emt 0:00:36]} e6 {[%emt 0:00:59]} 22. Ne3 {[%emt 0:03:25]} Qd7 {[%emt 0:02:11]} 23. f4 {[%emt 0:01:53]} d5 {[%emt 0:04:27]} 24. Neg4 {[%emt 0:01:31]} f5 {[%emt 0:04:23]} 25. Nf6+ {[%emt 0:00:39]} Bxf6 {[%emt 0:00:09]} 26. Bxf6 {[%emt 0:00:04]} Qf7 {[%emt 0:00:11]} {White should try} 27. e5 $11 {[%emt 0:00:06]} Nd7 {[%emt 0:01:20]} 28. Bh4 {[%emt 0:00:20]} Nb6 {[%emt 0:01:23]} (28... b5 $17) 29. Nf3 {[%emt 0:00:09]} h6 {[%emt 0:00:29]} 30. Qf2 {[%emt 0:00:13]} Nd7 {[%emt 0:01:20]} 31. Kh2 {[%emt 0:01:43]} (31. Bf6 $5) 31... Kh8 {[%emt 0:03:15]} 32. Rg1 {[%emt 0:00:15]} Rg8 {[%emt 0:00:48]} 33. Qe3 {[%emt 0:03:34]} Rcf8 {[%emt 0:01:37]} 34. Rdf1 {[%emt 0:00:07]} Re8 {[%emt 0:00:16]} 35. g4 {[%emt 0:00:43]} Ne7 {[%emt 0:00:13]} (35... Ref8 $17) 36. Bxe7 {[%emt 0:02:52]} Rxe7 {[%emt 0:00:09]} 37. gxf5 {[%emt 0:01:03]} exf5 {[%emt 0:00:57]} 38. Rg2 {[%emt 0:01:14]} Re6 {[%emt 0:01:01]} 39. Rfg1 {[%emt 0:00:22]} Kh7 {[%emt 0:00:00]} 40. h4 {[%emt 0:00:00]} Nf6 {[%emt 0:00:00]} (40... b6 $11) 41. Qxc5 {[%emt 0:02:49]} b6 {[%emt 0:04:31]} 42. Qd4 {[%emt 0:00:16]} Ng4+ {[%emt 0:00:11]} 43. Kg3 {[%emt 0:00:55]} Qd7 {[%emt 0:09:01]} 44. Nh2 $16 {[%emt 0:04:25]} g5 {[%emt 0:09:20]} 45. hxg5 {[%emt 0:01:59]} hxg5 {[%emt 0:00:23]} 46. Nxg4 {[%emt 0:00:51]} gxf4+ {[%emt 0:00:51]} 47. Kf2 {[%emt 0:01:50]} fxg4 {[%emt 0:01:16]} 48. Rh1+ {[%emt 0:00:11]} Kg7 {[%emt 0:04:19]} 49. Rxg4+ {[%emt 0:00:07]} Kf8 {[%emt 0:00:07]} 50. Qxf4+ {[%emt 0:00:16]} Qf7 {[%emt 0:00:08]} 51. Rxg8+ {[%emt 0:00:13]} Kxg8 {[%emt 0:00:06]} 52. Rh8+ {[%emt 0:00:10]} 1-0

[Event "FIDE WCCC G12 2018"]
[Site "Santiago de Compostela"]
[Date "2018.11.04"]
[Round "1"]
[White "Karmanova, Olga Dm."]
[Black "Bridgeman, Niamh"]
[Result "1-0"]
[ECO "A04"]
[WhiteElo "1819"]
[BlackElo "1516"]
[Annotator "NA"]
[PlyCount "61"]
[EventDate "2018.11.04"]
[EventType "swiss"]
[EventCountry "ESP"]
[SourceTitle "playchess.com"]
[Source "ChessBase"]
[SourceQuality "1"]
[TimeControl "40/5400+30:1800+30"]

{[%evp 10,57,75,32767,32767,32767,32767,32767,32767,32767,32767,-19,45,-90,-27,32767,32767,32767,108,119,97,79,32767,32767,32767,32767,143,104,32767,164,159,164,274,297,313,311,32767,331,357,345,380,378,558,693,815,897,909,572,554,580]} 1. Nf3 {[%emt 0:00:00]} f5 {[%emt 0:00:00]} 2. d3 {[%emt 0:00:02]} Nc6 {[%emt 0:00:00]} 3. e4 {[%emt 0:00:56]} e5 {[%emt 0:00:00]} 4. exf5 {[%emt 0:01:39] C40: Latvian and Elephant Gambits} (4. d4 fxe4 5. Nxe5 d6 6. Nxc6 bxc6 7. d5 Nf6 8. Nc3 Be7 9. dxc6 O-O 10. Bc4+ Kh8 11. O-O Qe8 {½-½ (47) Almasi,Z (2702)-Williams,S (2457) Douglas 2018}) 4... d6 {[%emt 0:01:04]} 5. d4 {[%emt 0:04:02]} Bxf5 {[%emt 0:01:10]} 6. Bb5 {[%emt 0:01:35]} e4 {[%emt 0:07:37]} 7. Bg5 $146 {[%emt 0:05:21]} ({Predecessor:} 7. d5 exf3 8. dxc6 Qe7+ 9. Be3 b6 10. gxf3 {½-½ (44) Fominykh,M (2282)-Kharmunova,N (2196) Moscow 2013}) 7... Be7 {[%emt 0:01:03]} 8. Nh4 {[%emt 0:01:37]} Bxg5 {[%emt 0:03:48]} 9. Nxf5 {[%emt 0:00:21]} Qf6 {[%emt 0:04:26]} 10. Qg4 {[%emt 0:09:15]} d5 {[%emt 0:03:29]} ({Reject} 10... Nge7 $6 11. Nxe7 h5 12. Qxe4 $16 (12. Bxc6+ bxc6 13. Qxe4 Qxe7 $16)) (10... g6 $1 $11 11. Ne3 (11. Qxe4+ Kf8 $11) 11... Qxd4 12. Qxg5 Qxb2) 11. Ne3 {[%emt 0:02:15]} (11. h4 $14 {stays ahead.} Bh6 12. Nc3) 11... h5 {[%emt 0:05:08]} (11... Nh6 $5 {[%cal Rh6g4]} 12. Qg3 Bxe3 13. fxe3 Nf5 $17) 12. Qg3 {[%emt 0:04:17]} Bf4 {[%emt 0:05:42]} 13. Nxd5 {[%emt 0:02:40]} Bxg3 {[%emt 0:10:13]} 14. Nxf6+ {[%emt 0:00:09]} Nxf6 {[%emt 0:00:18]} 15. hxg3 {[%emt 0:00:27]} O-O {[%emt 0:01:22]} 16. Bxc6 {[%emt 0:00:45]} bxc6 {[%emt 0:00:10]} 17. Nd2 {[%emt 0:00:56]} g6 {[%emt 0:03:55]} 18. c3 {[%emt 0:01:09]} Ng4 {[%emt 0:01:15]} 19. Nxe4 {[%emt 0:04:29]} Rae8 {[%emt 0:00:24]} 20. f3 {[%emt 0:00:44]} Ne3 {[%emt 0:01:18]} (20... Nf6 $16 {ist eine bessere Verteidigung.}) 21. Ke2 {[%emt 0:01:04]} Nf5 {[%emt 0:03:44]} 22. Kd3 {[%emt 0:01:16]} Kg7 {[%emt 0:03:01]} 23. Rae1 {[%emt 0:01:21]} Re7 {[%emt 0:01:33]} 24. g4 {[%emt 0:02:52]} hxg4 {[%emt 0:01:22]} 25. fxg4 {[%emt 0:00:13]} Nh6 {[%emt 0:00:52]} (25... Rfe8 $142 26. gxf5 gxf5) 26. g5 {[%emt 0:00:22]} Ng4 {[%emt 0:02:08]} 27. Nf6 {[%emt 0:05:27]} Nf2+ {[%emt 0:04:03]} 28. Kd2 {[%emt 0:01:00]} Nxh1 $18 {[%emt 0:01:18]} 29. Rxe7+ {[%emt 0:00:08]} Rf7 {[%emt 0:00:18]} 30. Re3 {[%emt 0:00:39]} Kf8 {[%emt 0:06:26]} 31. Re8+ {[%emt 0:00:12] Kg8} 1-0

[Event "FIDE WCCC G12 2018"]
[Site "Santiago de Compostela"]
[Date "2018.11.04"]
[Round "1"]
[White "Starosta, Martyna"]
[Black "Juarez Garcia, Daniela"]
[Result "1-0"]
[ECO "C78"]
[WhiteElo "1790"]
[BlackElo "1511"]
[Annotator "NA RC"]
[PlyCount "157"]
[EventDate "2018.11.04"]
[EventType "swiss"]
[EventCountry "ESP"]
[SourceTitle "playchess.com"]
[Source "ChessBase"]
[SourceQuality "1"]
[TimeControl "40/5400+30:1800+30"]

1. e4 {[%emt 0:00:00]} e5 {[%emt 0:00:00]} 2. Nf3 {[%emt 0:00:00]} Nc6 {[%emt 0:00:12]} 3. Bb5 {[%emt 0:00:00]} a6 {[%emt 0:00:25]} 4. Ba4 {[%emt 0:00:00]} Nf6 {[%emt 0:00:28]} 5. O-O {[%emt 0:00:08]} b5 {[%emt 0:00:30]} 6. Bb3 {[%emt 0:00:06]} d6 {[%emt 0:00:12]} 7. a4 {[%emt 0:03:01]} Rb8 {[%emt 0:01:53]} 8. h3 {[%emt 0:03:11]} Be7 {[%emt 0:00:22]} 9. c3 {[%emt 0:01:13]} O-O {[%emt 0:02:23]} 10. Re1 {[%emt 0:02:01]} Bb7 {[%emt 0:02:04]} 11. d3 {[%emt 0:01:06]} h6 {[%emt 0:02:56]} 12. Nbd2 {[%emt 0:00:57]} Re8 {[%emt 0:02:13]} 13. Nf1 {[%emt 0:00:59]} Bf8 {[%emt 0:00:39]} 14. Ng3 {[%emt 0:02:53]} Bc8 {[%emt 0:00:40]} 15. Nh4 {[%emt 0:03:52]} Na5 {[%emt 0:11:55]} 16. Bc2 {[%emt 0:03:27]} Nb7 {[%emt 0:00:45]} 17. Nhf5 {[%emt 0:02:38]} Bxf5 {[%emt 0:04:05]} 18. Nxf5 {[%emt 0:01:15]} Kh7 {[%emt 0:03:11]} 19. d4 {[%emt 0:09:36]} g6 {[%emt 0:02:37]} 20. Ng3 {[%emt 0:01:23]} c5 {[%emt 0:05:43]} 21. Be3 {[%emt 0:01:54]} Qc7 {[%emt 0:03:03]} 22. h4 {[%emt 0:04:11]} Qc8 {[%emt 0:05:31]} 23. Bd3 {[%emt 0:05:48]} exd4 {[%emt 0:03:52]} 24. cxd4 {[%emt 0:00:38]} c4 {[%emt 0:00:25]} 25. Bc2 {[%emt 0:03:22]} Qg4 {[%emt 0:01:17]} 26. Qxg4 {[%emt 0:02:04]} Nxg4 {[%emt 0:00:34]} 27. Bf4 {[%emt 0:01:10]} h5 {[%emt 0:02:33]} 28. f3 {[%emt 0:03:34]} Nh6 {[%emt 0:00:51]} 29. e5 {[%emt 0:01:10]} d5 {[%emt 0:08:24]} 30. Nxh5 {[%emt 0:06:51]} Ng8 {[%emt 0:03:53]} 31. Kf2 {[%emt 0:06:12]} Rbc8 {[%emt 0:04:38]} 32. Bg5 {[%emt 0:05:12]} b4 {[%emt 0:04:04]} 33. Nf4 {[%emt 0:02:42]} b3 {[%emt 0:05:22]} 34. e6 {[%emt 0:07:56]} bxc2 {[%emt 0:01:37]} 35. exf7 {[%emt 0:00:36]} Rxe1 {[%emt 0:01:01]} 36. fxg8=Q+ {[%emt 0:00:26]} Kxg8 {[%emt 0:00:31]} 37. Rxe1 {[%emt 0:01:52]} c3 {[%emt 0:02:00]} 38. bxc3 {[%emt 0:01:33]} Rxc3 {[%emt 0:02:39]} 39. Nxd5 {[%emt 0:02:34]} Rc4 {[%emt 0:06:35]} 40. Ke2 {[%emt 0:00:00]} Ba3 {[%emt 0:00:00]} 41. Bc1 {[%emt 0:06:41]} Bxc1 {[%emt 0:25:12]} 42. Rxc1 {[%emt 0:00:57]} Nd6 {[%emt 0:01:30]} 43. Ne3 {[%emt 0:09:30]} Rxd4 {[%emt 0:03:31]} 44. Rxc2 {[%emt 0:00:35]} Rxa4 {[%emt 0:00:30]} 45. Rc6 {[%emt 0:00:33]} Nb5 {[%emt 0:00:06]} 46. Rxg6+ {[%emt 0:01:34]} Kf7 {[%emt 0:00:08]} 47. Rg4 {[%emt 0:01:47]} Ra2+ {[%emt 0:02:13]} 48. Kd3 {[%emt 0:04:09]} Ra3+ {[%emt 0:00:06]} 49. Ke4 {[%emt 0:00:45]} Nd6+ {[%emt 0:02:54]} 50. Kd5 {[%emt 0:03:15]} Ne8 {[%emt 0:00:13]} 51. Kd4 {[%emt 0:01:11]} Nf6 {[%emt 0:01:58]} 52. Rf4 {[%emt 0:02:06]} Ra4+ {[%emt 0:00:17]} 53. Ke5 {[%emt 0:01:42]} Ra5+ {[%emt 0:00:07]} 54. Kd6 {[%emt 0:00:17]} Kg6 {[%emt 0:00:59]} 55. Ke6 {[%emt 0:01:16]} Ne8 {[%emt 0:01:29]} 56. Rg4+ {[%emt 0:02:06]} Kh7 {[%emt 0:01:31]} 57. Rg5 {[%emt 0:01:14]} Ra3 {[%emt 0:00:17]} 58. Nf5 {[%emt 0:01:32]} Rd3 {[%emt 0:01:49]} 59. Kf7 {[%emt 0:02:15]} Nd6+ {[%emt 0:00:02]} 60. Nxd6 {[%emt 0:00:06]} Rxd6 {[%emt 0:00:04]} 61. Rh5+ {[%emt 0:00:20]} Rh6 {[%emt 0:00:05]} 62. Rxh6+ {[%emt 0:00:11]} Kxh6 {[%emt 0:00:04]} 63. Ke6 {[%emt 0:00:11]} a5 {[%emt 0:00:31]} 64. Kd5 {[%emt 0:00:07]} Kh5 {[%emt 0:00:16]} 65. g3 {[%emt 0:00:06]} a4 {[%emt 0:00:04]} 66. Kc4 {[%emt 0:00:05]} a3 {[%emt 0:00:02]} 67. Kb3 {[%emt 0:00:03]} Kg6 {[%emt 0:00:04]} 68. g4 {[%emt 0:00:07]} Kf6 {[%emt 0:00:07]} 69. Kxa3 {[%emt 0:00:05]} Ke5 {[%emt 0:00:05]} 70. h5 {[%emt 0:00:06]} Kf6 {[%emt 0:00:14]} 71. Kb4 {[%emt 0:00:06]} Kg5 {[%emt 0:00:04]} 72. f4+ {[%emt 0:00:18]} Kh6 {[%emt 0:00:04]} 73. Kc5 {[%emt 0:00:06]} Kg7 {[%emt 0:00:06]} 74. Kd5 {[%emt 0:00:09]} Kf6 {[%emt 0:00:06]} 75. h6 {[%emt 0:00:06]} Kg6 {[%emt 0:00:05]} 76. g5 {[%emt 0:00:07]} Kh7 {[%emt 0:00:02]} 77. Ke6 {[%emt 0:00:08]} Kg6 {[%emt 0:00:04]} 78. f5+ {[%emt 0:00:05]} Kh7 {[%emt 0:00:04]} 79. f6 {[%emt 0:00:04]} 1-0

[Event "FIDE WCCC G12 2018"]
[Site "Santiago de Compostela"]
[Date "2018.11.04"]
[Round "1"]
[White "Munkhzul, Davaakhuu"]
[Black "Wisniowski, Natalie"]
[Result "1-0"]
[ECO "B11"]
[WhiteElo "1781"]
[BlackElo "1504"]
[Annotator "NA RC"]
[PlyCount "145"]
[EventDate "2018.11.04"]
[EventType "swiss"]
[EventCountry "ESP"]
[SourceTitle "playchess.com"]
[Source "ChessBase"]
[SourceQuality "1"]
[TimeControl "40/5400+30:1800+30"]

1. e4 {[%emt 0:00:00]} c6 {[%emt 0:00:00]} 2. Nc3 {[%emt 0:00:00]} d5 {[%emt 0:00:08]} 3. Nf3 {[%emt 0:00:14]} Bg4 {[%emt 0:00:51]} 4. h3 {[%emt 0:00:40]} Bxf3 {[%emt 0:00:46]} 5. Qxf3 {[%emt 0:00:13]} e6 {[%emt 0:01:10]} 6. d3 {[%emt 0:00:48]} Nf6 {[%emt 0:02:02]} 7. Be2 {[%emt 0:01:54]} Bd6 {[%emt 0:06:34]} 8. Bf4 {[%emt 0:02:20]} Bxf4 {[%emt 0:04:46]} 9. Qxf4 {[%emt 0:00:11]} O-O {[%emt 0:01:58]} 10. O-O {[%emt 0:01:49]} Nbd7 {[%emt 0:04:54]} 11. Qg3 {[%emt 0:05:02]} d4 {[%emt 0:10:30]} 12. Nb1 {[%emt 0:03:56]} c5 {[%emt 0:08:00]} 13. Nd2 {[%emt 0:02:45]} b5 {[%emt 0:03:55]} 14. f4 {[%emt 0:01:55]} Qc7 {[%emt 0:04:33]} 15. Qg5 {[%emt 0:05:09]} h6 {[%emt 0:04:11]} 16. Qh4 {[%emt 0:00:13]} Qd8 {[%emt 0:06:13]} 17. Rf3 {[%emt 0:03:51]} Ne8 {[%emt 0:04:24]} 18. Qf2 {[%emt 0:00:30]} Nd6 {[%emt 0:02:39]} 19. Rg3 {[%emt 0:01:50]} Rc8 {[%emt 0:05:25]} 20. Nf3 {[%emt 0:04:13]} Nb6 {[%emt 0:04:29]} 21. Ne5 {[%emt 0:01:55]} Nb7 {[%emt 0:03:13]} 22. Rf1 {[%emt 0:02:23]} Na4 {[%emt 0:02:21]} 23. f5 {[%emt 0:01:08]} exf5 {[%emt 0:05:31]} 24. Qxf5 {[%emt 0:00:22]} Nd6 {[%emt 0:00:32]} 25. Qf4 {[%emt 0:01:33]} Kh7 {[%emt 0:01:12]} 26. Bg4 {[%emt 0:00:46]} Rc7 {[%emt 0:00:53]} 27. Bf5+ {[%emt 0:01:09]} Nxf5 {[%emt 0:01:06]} 28. Qxf5+ {[%emt 0:00:08]} Kg8 {[%emt 0:01:24]} 29. Rf4 {[%emt 0:05:08]} c4 {[%emt 0:02:34]} 30. Ng4 {[%emt 0:05:17]} Kh8 {[%emt 0:00:57]} 31. Qxb5 {[%emt 0:02:44]} Nb6 {[%emt 0:00:58]} 32. Qh5 {[%emt 0:00:24]} Qg5 {[%emt 0:01:58]} 33. Qxg5 {[%emt 0:02:55]} hxg5 {[%emt 0:00:08]} 34. Rf5 {[%emt 0:01:23]} f6 {[%emt 0:00:48]} 35. h4 {[%emt 0:03:05]} gxh4 {[%emt 0:02:16]} 36. Rh5+ {[%emt 0:00:25]} Kg8 {[%emt 0:00:42]} 37. Nh6+ {[%emt 0:00:18]} Kh7 {[%emt 0:00:59]} 38. Nf5+ {[%emt 0:00:42]} Kg8 {[%emt 0:00:12]} 39. Rxh4 {[%emt 0:00:11]} g5 {[%emt 0:02:14]} 40. Rh6 {[%emt 0:00:00]} Rh7 {[%emt 0:00:00]} 41. Rxh7 {[%emt 0:01:01]} Kxh7 {[%emt 0:01:25]} 42. Rh3+ {[%emt 0:01:32]} Kg8 {[%emt 0:01:51]} 43. Ne7+ {[%emt 0:00:28]} Kg7 {[%emt 0:00:43]} 44. Nf5+ {[%emt 0:00:26]} Kg8 {[%emt 0:00:20]} 45. Nxd4 {[%emt 0:00:30]} cxd3 {[%emt 0:01:05]} 46. Rxd3 {[%emt 0:02:08]} Rc8 {[%emt 0:02:38]} 47. b3 {[%emt 0:01:43]} Re8 {[%emt 0:00:42]} 48. Nc6 {[%emt 0:00:40]} Rxe4 {[%emt 0:01:25]} 49. Nxa7 {[%emt 0:00:06]} Re5 {[%emt 0:02:13]} 50. Nc8 {[%emt 0:00:55]} Nd5 {[%emt 0:01:14]} 51. Rxd5 {[%emt 0:00:34]} Re2 {[%emt 0:00:24]} 52. Rc5 {[%emt 0:00:12]} Kf7 {[%emt 0:00:29]} 53. Rc7+ {[%emt 0:00:11]} Kg6 {[%emt 0:00:10]} 54. a4 {[%emt 0:00:06]} Kf5 {[%emt 0:00:28]} 55. a5 {[%emt 0:00:27]} Re1+ {[%emt 0:00:13]} 56. Kf2 {[%emt 0:00:04]} Ra1 {[%emt 0:00:11]} 57. b4 {[%emt 0:00:11]} Ra4 {[%emt 0:00:10]} 58. b5 {[%emt 0:00:27]} Rxa5 {[%emt 0:00:14]} 59. b6 {[%emt 0:00:05]} Ra2 {[%emt 0:00:12]} 60. b7 {[%emt 0:00:19]} Rb2 {[%emt 0:00:09]} 61. Nd6+ {[%emt 0:00:45]} Ke6 {[%emt 0:00:12]} 62. Rc8 {[%emt 0:00:08]} Kxd6 {[%emt 0:00:14]} 63. b8=Q+ {[%emt 0:00:14]} Rxb8 {[%emt 0:00:06]} 64. Rxb8 {[%emt 0:00:04]} Ke5 {[%emt 0:00:09]} 65. Rd8 {[%emt 0:00:04]} Ke6 {[%emt 0:00:08]} 66. c4 {[%emt 0:00:07]} Ke7 {[%emt 0:00:04]} 67. Rd3 {[%emt 0:00:04]} Ke6 {[%emt 0:00:06]} 68. c5 {[%emt 0:00:06]} f5 {[%emt 0:00:06]} 69. c6 {[%emt 0:00:02]} g4 {[%emt 0:00:06]} 70. c7 {[%emt 0:00:03]} g3+ {[%emt 0:00:06]} 71. Kxg3 {[%emt 0:00:07]} f4+ {[%emt 0:00:07]} 72. Kxf4 {[%emt 0:00:07]} Ke7 {[%emt 0:00:06]} 73. c8=Q {[%emt 0:00:10]} 1-0

[Event "FIDE WCCC G12 2018"]
[Site "Santiago de Compostela"]
[Date "2018.11.04"]
[Round "1"]
[White "Ivanova, Dilyana"]
[Black "Berezovsky, Fiorina"]
[Result "0-1"]
[ECO "B42"]
[WhiteElo "1775"]
[BlackElo "1492"]
[Annotator "NA RC"]
[PlyCount "116"]
[EventDate "2018.11.04"]
[EventType "swiss"]
[EventCountry "ESP"]
[SourceTitle "playchess.com"]
[Source "ChessBase"]
[SourceQuality "1"]
[TimeControl "40/5400+30:1800+30"]

1. e4 {[%emt 0:00:00]} c5 {[%emt 0:00:00]} 2. Nf3 {[%emt 0:00:00]} e6 {[%emt 0:00:07]} 3. d4 {[%emt 0:00:00]} cxd4 {[%emt 0:00:31]} 4. Nxd4 {[%emt 0:00:00]} a6 {[%emt 0:00:40]} 5. Bd3 {[%emt 0:00:00]} Bc5 {[%emt 0:01:42]} 6. Nb3 {[%emt 0:03:14]} Be7 {[%emt 0:01:00]} 7. O-O {[%emt 0:01:20]} Nc6 {[%emt 0:02:37]} 8. Qe2 {[%emt 0:01:54]} d6 {[%emt 0:03:16]} 9. c4 {[%emt 0:06:01]} Nf6 {[%emt 0:06:47]} 10. Nc3 {[%emt 0:05:25]} O-O {[%emt 0:02:58]} 11. f4 {[%emt 0:03:44]} Qc7 {[%emt 0:04:50]} 12. Kh1 {[%emt 0:02:31]} b6 {[%emt 0:03:07]} 13. Bd2 {[%emt 0:01:04]} Bb7 {[%emt 0:01:49]} 14. Rae1 {[%emt 0:02:12]} Rfd8 {[%emt 0:04:43]} 15. Bb1 {[%emt 0:08:17]} Nd7 {[%emt 0:19:54]} 16. Rf3 {[%emt 0:05:40]} Bf6 {[%emt 0:01:33]} 17. Rh3 {[%emt 0:03:03]} h6 {[%emt 0:04:53]} 18. Qg4 {[%emt 0:04:41]} Kf8 {[%emt 0:02:01]} 19. Nc1 {[%emt 0:14:00]} Na5 {[%emt 0:04:02]} 20. b3 {[%emt 0:01:04]} Nc6 {[%emt 0:04:04]} 21. f5 {[%emt 0:03:25]} Nde5 {[%emt 0:02:04]} 22. Qh5 {[%emt 0:04:38]} Ke7 {[%emt 0:03:25]} 23. Nd3 {[%emt 0:02:59]} Nxd3 {[%emt 0:01:53]} 24. Bxd3 {[%emt 0:00:08]} Ne5 {[%emt 0:00:38]} 25. Bc2 {[%emt 0:03:22]} Qc6 {[%emt 0:03:15]} 26. Bf4 {[%emt 0:02:55]} b5 {[%emt 0:01:50]} 27. Qe2 {[%emt 0:04:01]} bxc4 {[%emt 0:01:39]} 28. Bxe5 {[%emt 0:00:59]} dxe5 {[%emt 0:02:44]} 29. bxc4 {[%emt 0:01:22]} Rd4 {[%emt 0:00:51]} 30. Bb3 {[%emt 0:02:17]} Rad8 {[%emt 0:00:46]} 31. Rd1 {[%emt 0:02:19]} Bg5 {[%emt 0:00:59]} 32. Rhd3 {[%emt 0:01:52]} Qc5 {[%emt 0:04:04]} 33. h3 {[%emt 0:03:31]} Qb6 {[%emt 0:03:32]} 34. Na4 {[%emt 0:03:21]} Qa7 {[%emt 0:00:37]} 35. c5 {[%emt 0:01:32]} Bc6 {[%emt 0:01:50]} 36. Nb6 {[%emt 0:02:02]} Bb5 {[%emt 0:01:01]} 37. Bc4 {[%emt 0:01:37]} Bxc4 {[%emt 0:00:14]} 38. Nxc4 {[%emt 0:00:05]} Qxc5 {[%emt 0:00:15]} 39. Rxd4 {[%emt 0:00:42]} Rxd4 {[%emt 0:00:33]} 40. Rxd4 {[%emt 0:00:00]} Qxd4 {[%emt 0:00:00]} 41. fxe6 {[%emt 0:02:18]} fxe6 {[%emt 0:04:39]} 42. a3 {[%emt 0:02:29]} Bf4 {[%emt 0:00:20]} 43. g4 {[%emt 0:05:24]} Qc3 {[%emt 0:02:02]} 44. Qf1 {[%emt 0:00:57]} g5 {[%emt 0:01:25]} 45. a4 {[%emt 0:01:20]} Qc2 {[%emt 0:01:13]} 46. Qg1 {[%emt 0:02:47]} Qxc4 {[%emt 0:00:09]} 47. Qa7+ {[%emt 0:00:16]} Kf6 {[%emt 0:00:10]} 48. Qf2 {[%emt 0:01:14]} Qxe4+ {[%emt 0:00:36]} 49. Kg1 {[%emt 0:00:25]} Qe3 {[%emt 0:00:41]} 50. Qxe3 {[%emt 0:00:19]} Bxe3+ {[%emt 0:00:02]} 51. Kg2 {[%emt 0:00:18]} e4 {[%emt 0:00:17]} 52. Kf1 {[%emt 0:00:18]} Ke5 {[%emt 0:00:09]} 53. Ke2 {[%emt 0:00:20]} Kf4 {[%emt 0:00:17]} 54. a5 {[%emt 0:00:17]} Bc5 {[%emt 0:00:36]} 55. Kf1 {[%emt 0:00:30]} Kf3 {[%emt 0:00:14]} 56. Ke1 {[%emt 0:00:07]} e3 {[%emt 0:00:08]} 57. Kf1 {[%emt 0:00:14]} e2+ {[%emt 0:00:08]} 58. Ke1 {[%emt 0:00:05]} Bb4# {[%emt 0:00:06]} 0-1